[Event "Titled Tuesday Blitz May 4 2021"]
[White "Diaz Perez, Michel Alejandro"]
[Black "Mekhitarian, Krikor Sevag"]
[WhiteFideId "3517179"]
[BlackFideId "2107660"]
[WhiteElo "2337"]
[BlackElo "2598"]
[Result "0-1"]
[Round "09"]
[TimeControl "180+1"]
[Date "2021.05.04"]
[WhiteClock "0:00:01"]
[BlackClock "0:00:07"]

1. d4 {[%clk 0:03:00]}  Nf6 {[%clk 0:02:56]} 2. c4 {[%clk 0:03:00]}  e6 {[%clk 0:02:47]} 3. Nf3 {[%clk 0:02:59]}  Bb4+ {[%clk 0:02:45]} 4. Nbd2 {[%clk 0:02:58]}  a5 {[%clk 0:02:31]} 5. e3 {[%clk 0:02:54]}  O-O {[%clk 0:02:28]} 6. Bd3 {[%clk 0:02:53]}  d5 {[%clk 0:02:26]} 7. O-O {[%clk 0:02:51]}  b6 {[%clk 0:02:23]} 8. Qe2 {[%clk 0:02:40]}  Bd6 {[%clk 0:02:20]} 9. e4 {[%clk 0:02:36]}  dxe4 {[%clk 0:02:14]} 10. Nxe4 {[%clk 0:02:35]}  Nbd7 {[%clk 0:02:11]} 11. Bg5 {[%clk 0:02:19]}  Bb7 {[%clk 0:02:03]} 12. c5 {[%clk 0:02:01]}  Be7 {[%clk 0:02:00]} 13. Nxf6+ {[%clk 0:01:50]}  Nxf6 {[%clk 0:01:58]} 14. Rfd1 {[%clk 0:01:44]}  h6 {[%clk 0:01:50]} 15. Bh4 {[%clk 0:01:38]}  Qd5 {[%clk 0:01:45]} 16. Rac1 {[%clk 0:01:34]}  Rad8 {[%clk 0:01:36]} 17. Bg3 {[%clk 0:01:20]}  Rc8 {[%clk 0:01:26]} 18. Bc4 {[%clk 0:00:58]}  Qh5 {[%clk 0:01:17]} 19. Ne5 {[%clk 0:00:52]}  Qxe2 {[%clk 0:01:16]} 20. Bxe2 {[%clk 0:00:53]}  Ne4 {[%clk 0:00:53]} 21. c6 {[%clk 0:00:46]}  Ba8 {[%clk 0:00:46]} 22. Nd7 {[%clk 0:00:46]}  Nxg3 {[%clk 0:00:38]} 23. hxg3 {[%clk 0:00:45]}  Rfe8 {[%clk 0:00:39]} 24. d5 {[%clk 0:00:36]}  exd5 {[%clk 0:00:36]} 25. Rxd5 {[%clk 0:00:37]}  Bg5 {[%clk 0:00:28]} 26. Rc2 {[%clk 0:00:34]}  Bxc6 {[%clk 0:00:17]} 27. Rxc6 {[%clk 0:00:35]}  Rxe2 {[%clk 0:00:17]} 28. Nxb6 {[%clk 0:00:35]}  Rb8 {[%clk 0:00:14]} 29. Nc4 {[%clk 0:00:35]}  a4 {[%clk 0:00:11]} 30. Rxc7 {[%clk 0:00:33]}  Bf6 {[%clk 0:00:11]} 31. Rdd7 {[%clk 0:00:27]}  a3 {[%clk 0:00:11]} 32. bxa3 {[%clk 0:00:13]}  Rb1+ {[%clk 0:00:08]} 33. Kh2 {[%clk 0:00:13]}  Rxf2 {[%clk 0:00:09]} 34. Rxf7 {[%clk 0:00:12]}  Ra1 {[%clk 0:00:06]} 35. Nd6 {[%clk 0:00:08]}  Raxa2 {[%clk 0:00:06]} 36. Rc8+ {[%clk 0:00:07]}  Kh7 {[%clk 0:00:06]} 37. Kh3 {[%clk 0:00:07]}  Rxg2 {[%clk 0:00:06]} 38. Rff8 {[%clk 0:00:07]}  h5 {[%clk 0:00:04]} 39. Rh8+ {[%clk 0:00:06]}  Kg6 {[%clk 0:00:04]} 40. g4 {[%clk 0:00:05]}  Rh2+ {[%clk 0:00:03]} 41. Kg3 {[%clk 0:00:05]}  Be5+ {[%clk 0:00:04]} 42. Kf3 {[%clk 0:00:05]}  Bxd6 {[%clk 0:00:05]} 43. gxh5+ {[%clk 0:00:05]}  Rxh5 {[%clk 0:00:03]} 44. Rhd8 {[%clk 0:00:05]}  Rf5+ {[%clk 0:00:03]} 45. Ke4 {[%clk 0:00:04]}  Rf6 {[%clk 0:00:04]} 46. Rc6 {[%clk 0:00:04]}  Be7 {[%clk 0:00:03]} 47. Rc7 {[%clk 0:00:04]}  Bxd8 {[%clk 0:00:03]} 48. Rd7 {[%clk 0:00:04]}  Rxa3 {[%clk 0:00:03]} 49. Rxd8 {[%clk 0:00:03]}  Raf3 {[%clk 0:00:04]} 50. Ke5 {[%clk 0:00:03]}  R3f4 {[%clk 0:00:05]} 51. Rd7 {[%clk 0:00:01]}  R4f5+ {[%clk 0:00:06]} 52. Ke4 {[%clk 0:00:01]}  Kh7 {[%clk 0:00:07]} 0-1


[Site "https://www.chess.com"]

[Event "Titled Tuesday Blitz May 4 2021"]
[White "Djordjevic, Vuk"]
[Black "Sieciechowicz, Marcin"]
[WhiteFideId "902098"]
[BlackFideId "1130170"]
[WhiteElo "2463"]
[BlackElo "2288"]
[Result "1-0"]
[Round "09"]
[TimeControl "180+1"]
[Date "2021.05.04"]
[WhiteClock "0:01:04"]
[BlackClock "0:01:09"]

1. d4 {[%clk 0:03:00]}  Nf6 {[%clk 0:02:59]} 2. Bg5 {[%clk 0:03:01]}  Ne4 {[%clk 0:02:57]} 3. Bf4 {[%clk 0:03:00]}  c5 {[%clk 0:02:55]} 4. f3 {[%clk 0:03:00]}  Qa5+ {[%clk 0:02:49]} 5. c3 {[%clk 0:03:00]}  Nd6 {[%clk 0:02:45]} 6. e4 {[%clk 0:02:40]}  cxd4 {[%clk 0:02:43]} 7. Bxd6 {[%clk 0:02:28]}  exd6 {[%clk 0:02:23]} 8. Qxd4 {[%clk 0:02:28]}  Nc6 {[%clk 0:02:23]} 9. Qd2 {[%clk 0:02:06]}  Be7 {[%clk 0:02:22]} 10. Na3 {[%clk 0:02:06]}  O-O {[%clk 0:02:20]} 11. Nc4 {[%clk 0:02:04]}  Qc5 {[%clk 0:02:10]} 12. Nh3 {[%clk 0:01:56]}  b5 {[%clk 0:02:06]} 13. Ne3 {[%clk 0:01:55]}  Bg5 {[%clk 0:01:47]} 14. Nxg5 {[%clk 0:01:54]}  Qxg5 {[%clk 0:01:48]} 15. Nf5 {[%clk 0:01:47]}  Qg6 {[%clk 0:01:39]} 16. Bxb5 {[%clk 0:01:44]}  Kh8 {[%clk 0:01:39]} 17. O-O-O {[%clk 0:01:16]}  Rb8 {[%clk 0:01:39]} 18. Qxd6 {[%clk 0:01:13]}  Qxd6 {[%clk 0:01:23]} 19. Nxd6 {[%clk 0:01:14]}  Ne5 {[%clk 0:01:21]} 20. f4 {[%clk 0:01:14]}  Ng4 {[%clk 0:01:19]} 21. Rd2 {[%clk 0:01:09]}  Bb7 {[%clk 0:01:17]} 22. Bxd7 {[%clk 0:01:05]}  Ba8 {[%clk 0:01:09]} 23. Bxg4 {[%clk 0:01:04]} 1-0


[Site "https://www.chess.com"]

[Event "Titled Tuesday Blitz May 4 2021"]
[White "Dogan, Mire Deniz"]
[Black "Manukian, Artak"]
[WhiteFideId "6317456"]
[BlackFideId "13301373"]
[WhiteElo "1850"]
[BlackElo "2467"]
[Result "1/2-1/2"]
[Round "09"]
[TimeControl "180+1"]
[Date "2021.05.04"]
[WhiteClock "0:00:15"]
[BlackClock "0:00:13"]

1. b4 {[%clk 0:03:00]}  a5 {[%clk 0:02:59]} 2. b5 {[%clk 0:03:00]}  c5 {[%clk 0:02:59]} 3. e4 {[%clk 0:02:58]}  b6 {[%clk 0:02:55]} 4. Bb2 {[%clk 0:02:58]}  Bb7 {[%clk 0:02:55]} 5. d3 {[%clk 0:02:43]}  Nf6 {[%clk 0:02:49]} 6. Nd2 {[%clk 0:02:42]}  d5 {[%clk 0:02:49]} 7. exd5 {[%clk 0:02:42]}  Nxd5 {[%clk 0:02:48]} 8. Be2 {[%clk 0:02:41]}  f6 {[%clk 0:02:48]} 9. Bf3 {[%clk 0:02:42]}  e5 {[%clk 0:02:48]} 10. c4 {[%clk 0:02:42]}  Nb4 {[%clk 0:02:37]} 11. Bxb7 {[%clk 0:02:34]}  Nxd3+ {[%clk 0:02:37]} 12. Kf1 {[%clk 0:02:35]}  Nxb2 {[%clk 0:02:37]} 13. Qc2 {[%clk 0:02:35]}  Ra7 {[%clk 0:02:36]} 14. Bd5 {[%clk 0:02:31]}  Nxc4 {[%clk 0:02:10]} 15. Bxc4 {[%clk 0:02:25]}  Rd7 {[%clk 0:02:06]} 16. Ngf3 {[%clk 0:02:14]}  g6 {[%clk 0:02:05]} 17. g3 {[%clk 0:02:10]}  Bh6 {[%clk 0:02:04]} 18. Ne4 {[%clk 0:01:35]}  f5 {[%clk 0:01:57]} 19. Nc3 {[%clk 0:01:34]}  e4 {[%clk 0:01:57]} 20. Re1 {[%clk 0:00:58]}  Kf8 {[%clk 0:01:45]} 21. Nxe4 {[%clk 0:00:53]}  fxe4 {[%clk 0:01:43]} 22. Qxe4 {[%clk 0:00:53]}  Re7 {[%clk 0:01:41]} 23. Ne5 {[%clk 0:00:25]}  Kg7 {[%clk 0:01:32]} 24. Kg2 {[%clk 0:00:26]}  Qd4 {[%clk 0:01:25]} 25. Qxd4 {[%clk 0:00:23]}  cxd4 {[%clk 0:01:25]} 26. Nc6 {[%clk 0:00:20]}  Nxc6 {[%clk 0:01:20]} 27. bxc6 {[%clk 0:00:21]}  Rc7 {[%clk 0:01:13]} 28. Bb5 {[%clk 0:00:20]}  Rd8 {[%clk 0:01:10]} 29. Rd1 {[%clk 0:00:20]}  d3 {[%clk 0:01:05]} 30. Rhe1 {[%clk 0:00:19]}  d2 {[%clk 0:01:05]} 31. Re2 {[%clk 0:00:20]}  Rd5 {[%clk 0:01:03]} 32. a4 {[%clk 0:00:20]}  Kf6 {[%clk 0:00:51]} 33. f4 {[%clk 0:00:20]}  Bf8 {[%clk 0:00:47]} 34. Rexd2 {[%clk 0:00:20]}  Rxd2+ {[%clk 0:00:47]} 35. Rxd2 {[%clk 0:00:21]}  h5 {[%clk 0:00:45]} 36. Rd8 {[%clk 0:00:20]}  Be7 {[%clk 0:00:41]} 37. Rb8 {[%clk 0:00:21]}  Bc5 {[%clk 0:00:41]} 38. Rb7 {[%clk 0:00:21]}  Rc8 {[%clk 0:00:38]} 39. Kf3 {[%clk 0:00:21]}  Ke6 {[%clk 0:00:32]} 40. Ke4 {[%clk 0:00:18]}  Bg1 {[%clk 0:00:29]} 41. Rg7 {[%clk 0:00:19]}  Kf6 {[%clk 0:00:28]} 42. Rb7 {[%clk 0:00:18]}  Bxh2 {[%clk 0:00:24]} 43. c7 {[%clk 0:00:18]}  Ke7 {[%clk 0:00:19]} 44. Kd5 {[%clk 0:00:14]}  Bxg3 {[%clk 0:00:18]} 45. Kc6 {[%clk 0:00:14]}  Bxf4 {[%clk 0:00:17]} 46. Ba6 {[%clk 0:00:15]}  h4 {[%clk 0:00:14]} 47. Ra7 {[%clk 0:00:15]}  Rxc7+ {[%clk 0:00:12]} 48. Rxc7+ {[%clk 0:00:16]}  Bxc7 {[%clk 0:00:13]} 49. Kxc7 {[%clk 0:00:17]}  h3 {[%clk 0:00:13]} 50. Kxb6 {[%clk 0:00:16]}  g5 {[%clk 0:00:11]} 51. Kxa5 {[%clk 0:00:16]}  g4 {[%clk 0:00:11]} 52. Bf1 {[%clk 0:00:17]}  Kf6 {[%clk 0:00:10]} 53. Kb6 {[%clk 0:00:17]}  Kg5 {[%clk 0:00:10]} 54. a5 {[%clk 0:00:18]}  Kh4 {[%clk 0:00:11]} 55. a6 {[%clk 0:00:19]}  g3 {[%clk 0:00:12]} 56. Bxh3 {[%clk 0:00:10]}  Kxh3 {[%clk 0:00:11]} 57. a7 {[%clk 0:00:11]}  g2 {[%clk 0:00:12]} 58. a8=Q {[%clk 0:00:12]}  g1=Q+ {[%clk 0:00:13]} 59. Kb7 {[%clk 0:00:13]}  Qg2+ {[%clk 0:00:13]} 60. Ka7 {[%clk 0:00:14]}  Qxa8+ {[%clk 0:00:13]} 61. Kxa8 {[%clk 0:00:15]} 1/2-1/2


[Site "https://www.chess.com"]

[Event "Titled Tuesday Blitz May 4 2021"]
[White "Dudzinski, Pawel"]
[Black "Ivanov, Mike"]
[WhiteFideId "1117890"]
[BlackFideId "2613158"]
[WhiteElo "2193"]
[BlackElo "2197"]
[Result "0-1"]
[Round "09"]
[TimeControl "180+1"]
[Date "2021.05.04"]
[WhiteClock "0:00:38"]
[BlackClock "0:00:34"]

1. e4 {[%clk 0:03:00]}  e6 {[%clk 0:03:00]} 2. d4 {[%clk 0:02:59]}  d5 {[%clk 0:03:01]} 3. Nd2 {[%clk 0:03:00]}  e5 {[%clk 0:03:00]} 4. dxe5 {[%clk 0:02:54]}  dxe4 {[%clk 0:03:01]} 5. Qe2 {[%clk 0:02:33]}  Nc6 {[%clk 0:02:58]} 6. Qxe4 {[%clk 0:02:30]}  Nge7 {[%clk 0:02:56]} 7. Bb5 {[%clk 0:02:17]}  Bf5 {[%clk 0:02:50]} 8. Bxc6+ {[%clk 0:02:17]}  bxc6 {[%clk 0:02:51]} 9. Qa4 {[%clk 0:02:17]}  Qd7 {[%clk 0:02:37]} 10. Ngf3 {[%clk 0:02:16]}  Nd5 {[%clk 0:02:37]} 11. O-O {[%clk 0:02:15]}  Nb4 {[%clk 0:02:34]} 12. Ne1 {[%clk 0:01:56]}  Bc5 {[%clk 0:02:21]} 13. c3 {[%clk 0:01:55]}  Nd3 {[%clk 0:02:18]} 14. Nxd3 {[%clk 0:01:51]}  Bxd3 {[%clk 0:02:19]} 15. Re1 {[%clk 0:01:51]}  O-O {[%clk 0:02:19]} 16. Ne4 {[%clk 0:01:44]}  Bb6 {[%clk 0:02:10]} 17. Be3 {[%clk 0:01:44]}  Rfe8 {[%clk 0:02:03]} 18. Nc5 {[%clk 0:01:23]}  Bxc5 {[%clk 0:02:02]} 19. Bxc5 {[%clk 0:01:23]}  Qd5 {[%clk 0:01:52]} 20. Qd4 {[%clk 0:01:20]}  Qxd4 {[%clk 0:01:43]} 21. cxd4 {[%clk 0:01:14]}  a5 {[%clk 0:01:43]} 22. Re3 {[%clk 0:01:11]}  Bc4 {[%clk 0:01:43]} 23. b3 {[%clk 0:01:10]}  Bd5 {[%clk 0:01:43]} 24. f4 {[%clk 0:01:09]}  a4 {[%clk 0:01:39]} 25. bxa4 {[%clk 0:01:01]}  Rxa4 {[%clk 0:01:37]} 26. a3 {[%clk 0:00:58]}  Rb8 {[%clk 0:01:35]} 27. Rae1 {[%clk 0:00:47]}  Rc4 {[%clk 0:01:29]} 28. f5 {[%clk 0:00:40]}  Re8 {[%clk 0:00:36]} 29. e6 {[%clk 0:00:37]}  fxe6 {[%clk 0:00:35]} 30. fxe6 {[%clk 0:00:38]}  Rc2 {[%clk 0:00:34]} 0-1


[Site "https://www.chess.com"]

[Event "Titled Tuesday Blitz May 4 2021"]
[White "Erden, Kadir"]
[Black "Maly, Alexey"]
[WhiteFideId "6305776"]
[BlackFideId "14103184"]
[WhiteElo "2218"]
[BlackElo "2314"]
[Result "0-1"]
[Round "09"]
[TimeControl "180+1"]
[Date "2021.05.04"]
[WhiteClock "0:00:11"]
[BlackClock "0:01:30"]

1. e4 {[%clk 0:00:21]}  c6 {[%clk 0:02:56]} 2. Nf3 {[%clk 0:00:22]}  d5 {[%clk 0:02:57]} 3. Nc3 {[%clk 0:00:22]}  Bg4 {[%clk 0:02:57]} 4. h3 {[%clk 0:00:21]}  Bxf3 {[%clk 0:02:58]} 5. Qxf3 {[%clk 0:00:22]}  e6 {[%clk 0:02:58]} 6. d3 {[%clk 0:00:22]}  Nf6 {[%clk 0:02:58]} 7. Bd2 {[%clk 0:00:23]}  Qb6 {[%clk 0:02:58]} 8. O-O-O {[%clk 0:00:23]}  d4 {[%clk 0:02:59]} 9. Ne2 {[%clk 0:00:22]}  c5 {[%clk 0:02:59]} 10. g4 {[%clk 0:00:23]}  Nc6 {[%clk 0:03:00]} 11. g5 {[%clk 0:00:23]}  Nd7 {[%clk 0:03:00]} 12. Qg3 {[%clk 0:00:23]}  c4 {[%clk 0:03:00]} 13. dxc4 {[%clk 0:00:23]}  Nc5 {[%clk 0:03:00]} 14. Nf4 {[%clk 0:00:22]}  Nxe4 {[%clk 0:02:58]} 15. Qf3 {[%clk 0:00:19]}  Nxd2 {[%clk 0:02:54]} 16. Rxd2 {[%clk 0:00:20]}  Bb4 {[%clk 0:02:54]} 17. Rd1 {[%clk 0:00:20]}  O-O-O {[%clk 0:02:52]} 18. Bd3 {[%clk 0:00:19]}  Bc3 {[%clk 0:01:38]} 19. bxc3 {[%clk 0:00:11]}  dxc3 {[%clk 0:01:39]} 20. Rde1 {[%clk 0:00:11]}  Nd4 {[%clk 0:01:35]} 21. Qe4 {[%clk 0:00:11]}  Qb2+ {[%clk 0:01:30]} 0-1


[Site "https://www.chess.com"]

[Event "Titled Tuesday Blitz May 4 2021"]
[White "Estrada Nieto, Julian"]
[Black "Niyazgulova, Marina"]
[WhiteFideId "5101018"]
[BlackFideId "24142573"]
[WhiteElo "2270"]
[BlackElo "2087"]
[Result "1/2-1/2"]
[Round "09"]
[TimeControl "180+1"]
[Date "2021.05.04"]
[WhiteClock "0:00:14"]
[BlackClock "0:00:34"]

1. e4 {[%clk 0:03:00]}  d5 {[%clk 0:02:59]} 2. exd5 {[%clk 0:03:00]}  Qxd5 {[%clk 0:02:59]} 3. Nc3 {[%clk 0:03:00]}  Qd6 {[%clk 0:02:58]} 4. d4 {[%clk 0:03:00]}  Nf6 {[%clk 0:02:59]} 5. Nf3 {[%clk 0:03:00]}  c6 {[%clk 0:02:59]} 6. Ne5 {[%clk 0:02:57]}  Nbd7 {[%clk 0:02:58]} 7. Bf4 {[%clk 0:02:56]}  Nb6 {[%clk 0:02:58]} 8. Be2 {[%clk 0:02:43]}  Nbd5 {[%clk 0:02:56]} 9. Nxd5 {[%clk 0:02:28]}  Nxd5 {[%clk 0:02:55]} 10. Bd2 {[%clk 0:02:16]}  Bf5 {[%clk 0:02:50]} 11. O-O {[%clk 0:02:15]}  e6 {[%clk 0:02:48]} 12. c4 {[%clk 0:02:15]}  Nf6 {[%clk 0:02:46]} 13. Qb3 {[%clk 0:02:00]}  Qc7 {[%clk 0:02:39]} 14. Bf4 {[%clk 0:02:00]}  Qb6 {[%clk 0:02:39]} 15. Qxb6 {[%clk 0:01:33]}  axb6 {[%clk 0:02:38]} 16. Bf3 {[%clk 0:01:32]}  Be4 {[%clk 0:02:35]} 17. Bxe4 {[%clk 0:01:28]}  Nxe4 {[%clk 0:02:35]} 18. Rfe1 {[%clk 0:01:29]}  Nf6 {[%clk 0:02:31]} 19. a3 {[%clk 0:01:21]}  Be7 {[%clk 0:02:29]} 20. Bg5 {[%clk 0:01:11]}  O-O {[%clk 0:02:25]} 21. Rad1 {[%clk 0:01:10]}  Rfd8 {[%clk 0:02:23]} 22. Kf1 {[%clk 0:01:05]}  h6 {[%clk 0:02:20]} 23. Be3 {[%clk 0:01:04]}  Nd7 {[%clk 0:02:09]} 24. Nxd7 {[%clk 0:00:56]}  Rxd7 {[%clk 0:02:09]} 25. d5 {[%clk 0:00:54]}  exd5 {[%clk 0:01:49]} 26. cxd5 {[%clk 0:00:54]}  c5 {[%clk 0:01:31]} 27. Bf4 {[%clk 0:00:53]}  Rad8 {[%clk 0:01:27]} 28. Re2 {[%clk 0:00:41]}  Kf8 {[%clk 0:01:04]} 29. Red2 {[%clk 0:00:40]}  Bd6 {[%clk 0:00:59]} 30. Bxd6+ {[%clk 0:00:33]}  Rxd6 {[%clk 0:00:59]} 31. Rd3 {[%clk 0:00:25]}  Ke7 {[%clk 0:00:59]} 32. Ke2 {[%clk 0:00:22]}  Kf6 {[%clk 0:00:59]} 33. Ke3 {[%clk 0:00:19]}  Ke5 {[%clk 0:00:59]} 34. f4+ {[%clk 0:00:18]}  Kf5 {[%clk 0:00:56]} 35. Kf3 {[%clk 0:00:19]}  h5 {[%clk 0:00:56]} 36. g3 {[%clk 0:00:19]}  f6 {[%clk 0:00:54]} 37. h3 {[%clk 0:00:19]}  Kg6 {[%clk 0:00:42]} 38. g4 {[%clk 0:00:19]}  hxg4+ {[%clk 0:00:42]} 39. hxg4 {[%clk 0:00:19]}  Rh8 {[%clk 0:00:43]} 40. Ke4 {[%clk 0:00:14]}  Re8+ {[%clk 0:00:34]} 41. Kf3 {[%clk 0:00:14]}  Rh8 {[%clk 0:00:34]} 42. Ke4 {[%clk 0:00:14]}  Re8+ {[%clk 0:00:34]} 43. Kf3 {[%clk 0:00:14]}  Rh8 {[%clk 0:00:34]} 1/2-1/2


[Site "https://www.chess.com"]

[Event "Titled Tuesday Blitz May 4 2021"]
[White "Eynullayev, Altay"]
[Black "Omk124"]
[WhiteFideId "13413562"]
[WhiteElo "2079"]
[BlackElo "2607"]
[Result "0-1"]
[Round "09"]
[TimeControl "180+1"]
[Date "2021.05.04"]
[WhiteClock "0:00:21"]
[BlackClock "0:01:28"]

1. e4 {[%clk 0:03:00]}  g6 {[%clk 0:02:59]} 2. d4 {[%clk 0:03:01]}  Bg7 {[%clk 0:02:59]} 3. Nc3 {[%clk 0:03:01]}  c6 {[%clk 0:03:00]} 4. Nf3 {[%clk 0:03:00]}  d6 {[%clk 0:03:00]} 5. Be3 {[%clk 0:02:52]}  Nf6 {[%clk 0:02:59]} 6. Qd2 {[%clk 0:02:48]}  Nbd7 {[%clk 0:02:45]} 7. a4 {[%clk 0:02:41]}  O-O {[%clk 0:02:43]} 8. h3 {[%clk 0:02:37]}  e5 {[%clk 0:02:43]} 9. dxe5 {[%clk 0:02:33]}  dxe5 {[%clk 0:02:42]} 10. Bc4 {[%clk 0:02:22]}  Qe7 {[%clk 0:02:42]} 11. Rd1 {[%clk 0:01:38]}  Nc5 {[%clk 0:02:35]} 12. Bxc5 {[%clk 0:01:38]}  Qxc5 {[%clk 0:02:36]} 13. Bb3 {[%clk 0:01:38]}  Nh5 {[%clk 0:02:29]} 14. Qd6 {[%clk 0:01:35]}  Qxd6 {[%clk 0:02:24]} 15. Rxd6 {[%clk 0:01:36]}  Nf4 {[%clk 0:02:24]} 16. O-O {[%clk 0:01:34]}  Be6 {[%clk 0:02:24]} 17. Rfd1 {[%clk 0:01:22]}  Rfe8 {[%clk 0:02:18]} 18. a5 {[%clk 0:01:16]}  Bf8 {[%clk 0:02:16]} 19. R6d2 {[%clk 0:01:13]}  Bb4 {[%clk 0:02:16]} 20. Bxe6 {[%clk 0:01:10]}  Nxe6 {[%clk 0:02:14]} 21. Nxe5 {[%clk 0:01:08]}  Bxa5 {[%clk 0:02:10]} 22. Nc4 {[%clk 0:00:46]}  Bxc3 {[%clk 0:02:09]} 23. bxc3 {[%clk 0:00:46]}  Nc5 {[%clk 0:02:09]} 24. f3 {[%clk 0:00:46]}  a5 {[%clk 0:02:05]} 25. Nd6 {[%clk 0:00:34]}  Re7 {[%clk 0:02:04]} 26. Rb1 {[%clk 0:00:31]}  b5 {[%clk 0:01:57]} 27. h4 {[%clk 0:00:22]}  Rd7 {[%clk 0:01:55]} 28. Rbd1 {[%clk 0:00:21]}  Rad8 {[%clk 0:01:52]} 29. e5 {[%clk 0:00:21]}  Na4 {[%clk 0:01:32]} 30. Rd3 {[%clk 0:00:21]}  Nb2 {[%clk 0:01:31]} 31. Rd4 {[%clk 0:00:20]}  Nxd1 {[%clk 0:01:32]} 32. Rxd1 {[%clk 0:00:21]}  a4 {[%clk 0:01:32]} 33. f4 {[%clk 0:00:20]}  f6 {[%clk 0:01:28]} 34. g4 {[%clk 0:00:20]}  fxe5 {[%clk 0:01:28]} 35. fxe5 {[%clk 0:00:21]}  Re7 {[%clk 0:01:28]} 0-1


[Site "https://www.chess.com"]

[Event "Titled Tuesday Blitz May 4 2021"]
[White "Gabrielian, Artur"]
[Black "serhanberat_ozdemir"]
[WhiteFideId "4131002"]
[WhiteElo "2539"]
[BlackElo "2640"]
[Result "1-0"]
[Round "09"]
[TimeControl "180+1"]
[Date "2021.05.04"]
[WhiteClock "0:00:23"]
[BlackClock "0:00:01"]

1. d4 {[%clk 0:03:00]}  Nf6 {[%clk 0:02:58]} 2. c4 {[%clk 0:03:00]}  g6 {[%clk 0:02:58]} 3. Nc3 {[%clk 0:02:59]}  Bg7 {[%clk 0:02:58]} 4. Nf3 {[%clk 0:02:58]}  O-O {[%clk 0:02:57]} 5. g3 {[%clk 0:02:57]}  d6 {[%clk 0:02:57]} 6. Bg2 {[%clk 0:02:57]}  c6 {[%clk 0:02:57]} 7. O-O {[%clk 0:02:56]}  Qa5 {[%clk 0:02:58]} 8. h3 {[%clk 0:02:49]}  e5 {[%clk 0:02:57]} 9. e4 {[%clk 0:02:42]}  Nbd7 {[%clk 0:02:54]} 10. Re1 {[%clk 0:02:40]}  exd4 {[%clk 0:02:54]} 11. Nxd4 {[%clk 0:02:39]}  Ne5 {[%clk 0:02:54]} 12. Nb3 {[%clk 0:02:27]}  Qc7 {[%clk 0:02:42]} 13. c5 {[%clk 0:02:05]}  dxc5 {[%clk 0:02:28]} 14. Nxc5 {[%clk 0:02:05]}  Rd8 {[%clk 0:02:09]} 15. Qe2 {[%clk 0:02:04]}  b6 {[%clk 0:02:08]} 16. Nb3 {[%clk 0:02:02]}  Be6 {[%clk 0:01:52]} 17. Bf4 {[%clk 0:01:48]}  Nh5 {[%clk 0:01:46]} 18. Bg5 {[%clk 0:01:45]}  Bc4 {[%clk 0:01:44]} 19. Bxd8 {[%clk 0:01:42]}  Rxd8 {[%clk 0:01:44]} 20. Qc2 {[%clk 0:01:41]}  Bd3 {[%clk 0:01:37]} 21. Qc1 {[%clk 0:01:41]}  Qe7 {[%clk 0:01:05]} 22. Rd1 {[%clk 0:01:33]}  a5 {[%clk 0:01:01]} 23. Qe3 {[%clk 0:01:29]}  Nc4 {[%clk 0:00:58]} 24. Qc1 {[%clk 0:01:22]}  b5 {[%clk 0:00:49]} 25. Bf1 {[%clk 0:01:00]}  Bxf1 {[%clk 0:00:41]} 26. Rxd8+ {[%clk 0:00:59]}  Qxd8 {[%clk 0:00:42]} 27. Qxf1 {[%clk 0:00:57]}  a4 {[%clk 0:00:42]} 28. Rd1 {[%clk 0:00:55]}  Qe7 {[%clk 0:00:40]} 29. Nd4 {[%clk 0:00:54]}  Bxd4 {[%clk 0:00:22]} 30. Rxd4 {[%clk 0:00:54]}  Qc5 {[%clk 0:00:20]} 31. Rd8+ {[%clk 0:00:39]}  Kg7 {[%clk 0:00:19]} 32. Qd3 {[%clk 0:00:30]}  Nxb2 {[%clk 0:00:17]} 33. Qd4+ {[%clk 0:00:30]}  Qxd4 {[%clk 0:00:17]} 34. Rxd4 {[%clk 0:00:31]}  c5 {[%clk 0:00:12]} 35. Rd2 {[%clk 0:00:31]}  Nc4 {[%clk 0:00:10]} 36. Rd5 {[%clk 0:00:31]}  b4 {[%clk 0:00:07]} 37. Nxa4 {[%clk 0:00:30]}  Nf6 {[%clk 0:00:02]} 38. Rxc5 {[%clk 0:00:30]}  Nd2 {[%clk 0:00:02]} 39. Rb5 {[%clk 0:00:24]}  Nfxe4 {[%clk 0:00:01]} 40. Rxb4 {[%clk 0:00:24]}  Nf3+ {[%clk 0:00:02]} 41. Kg2 {[%clk 0:00:23]}  Ne1+ {[%clk 0:00:01]} 42. Kf1 {[%clk 0:00:23]} 1-0


[Site "https://www.chess.com"]

[Event "Titled Tuesday Blitz May 4 2021"]
[White "Gahan, M G"]
[Black "Omariev, Maksim"]
[WhiteFideId "5027373"]
[BlackFideId "4193423"]
[WhiteElo "2264"]
[BlackElo "2422"]
[Result "1-0"]
[Round "09"]
[TimeControl "180+1"]
[Date "2021.05.04"]
[WhiteClock "0:02:30"]
[BlackClock "0:00:22"]

1. e4 {[%clk 0:03:00]}  c5 {[%clk 0:02:59]} 2. c3 {[%clk 0:03:00]}  Nf6 {[%clk 0:02:59]} 3. e5 {[%clk 0:03:01]}  Nd5 {[%clk 0:02:59]} 4. d4 {[%clk 0:03:00]}  cxd4 {[%clk 0:02:59]} 5. cxd4 {[%clk 0:03:01]}  Nc6 {[%clk 0:02:58]} 6. Nf3 {[%clk 0:03:01]}  d6 {[%clk 0:02:59]} 7. Bc4 {[%clk 0:03:00]}  e6 {[%clk 0:02:54]} 8. O-O {[%clk 0:02:59]}  Be7 {[%clk 0:02:55]} 9. a3 {[%clk 0:02:59]}  O-O {[%clk 0:02:55]} 10. Qe2 {[%clk 0:02:59]}  a6 {[%clk 0:02:53]} 11. Qe4 {[%clk 0:02:58]}  dxe5 {[%clk 0:02:32]} 12. dxe5 {[%clk 0:02:58]}  b5 {[%clk 0:02:24]} 13. Bd3 {[%clk 0:02:57]}  g6 {[%clk 0:02:24]} 14. Bh6 {[%clk 0:02:57]}  Re8 {[%clk 0:02:24]} 15. Nbd2 {[%clk 0:02:56]}  Bb7 {[%clk 0:02:24]} 16. Qg4 {[%clk 0:02:51]}  Ne3 {[%clk 0:01:35]} 17. fxe3 {[%clk 0:02:44]}  Qxd3 {[%clk 0:01:35]} 18. Ne4 {[%clk 0:02:39]}  Rad8 {[%clk 0:00:51]} 19. Qf4 {[%clk 0:02:33]}  Qd7 {[%clk 0:00:22]} 20. Nf6+ {[%clk 0:02:30]} 1-0


[Site "https://www.chess.com"]